bitfinex-derivatives/quotes_ETHF0:USTF0_20260303
["timestamp","ask_amount","ask_price","bid_price","bid_amount"]
[1772568579254,4.58130435,1984.4,1983.4,4.58013992]
[1772568580553,4.58130435,1984.7,1983.6,4.58013992]
[1772568580753,4.58130435,1984.5,1983.6,4.58013992]
[1772568582058,4.58130435,1984.7,1983.8,4.58013992]
[1772568582253,16.18330435,1984.9,1984.0,4.58013992]
[1772568582758,4.58130435,1984.8,1984.0,4.58013992]
[1772568583752,4.58130435,1984.8,1983.9,4.83217992]
[1772568583954,11.606,1985.1,1983.9,4.83217992]
[1772568584149,4.58130435,1985.0,1983.9,4.58013992]
[1772568584755,4.83321435,1985.0,1983.5,4.58013992]
[1772568588157,4.83321435,1985.0,1983.7,4.32196877]
[1772568588361,4.58130435,1985.0,1984.1,4.32196877]
[1772568588961,4.58130435,1985.0,1984.3,4.32196877]
[1772568589858,4.83320435,1985.0,1983.5,6.481]
[1772568590065,4.83320435,1985.0,1983.5,4.32196877]
[1772568591161,4.83320435,1985.0,1983.6,0.25208]
[1772568591358,4.32452789,1984.8,1983.7,4.32196877]
[1772568591559,4.32452789,1984.8,1983.9,4.32196877]
[1772568591961,4.32452789,1984.8,1984.0,4.57399877]
[1772568593565,4.32452789,1984.8,1983.7,4.32196877]
[1772568594466,4.32452789,1984.8,1983.9,4.32196877]
[1772568595664,4.32452789,1984.8,1983.8,4.32196877]
[1772568598360,4.32452789,1984.6,1983.8,4.32196877]
[1772568598970,4.17076524,1985.0,1984.0,4.32196877]
[1772568598971,4.32452789,1984.8,1984.0,4.32196877]
[1772568600461,4.57646789,1984.8,1983.6,10.6128116]
[1772568600666,4.32452789,1984.6,1983.6,4.32196877]
[1772568601069,4.32452789,1984.4,1983.4,4.32196877]
[1772568601365,4.17076524,1984.6,1983.4,4.32196877]
[1772568601567,4.32452789,1984.5,1983.6,4.32196877]
[1772568601771,15.91752789,1984.5,1983.6,4.32196877]
[1772568602071,15.91752789,1984.5,1983.7,0.25207]
[1772568602267,4.32452789,1984.4,1983.6,4.32196877]
[1772568602472,4.32452789,1984.4,1983.4,4.32196877]
[1772568602971,4.32452789,1984.4,1983.6,4.32196877]
[1772568603166,4.17076524,1984.6,1983.6,4.32196877]
[1772568603373,4.32452789,1984.6,1983.9,4.57400877]
[1772568604674,4.32452789,1984.1,1983.3,4.32196877]
[1772568604872,4.32452789,1984.0,1983.3,4.32196877]
[1772568606573,0.00609198,1984.1,1983.3,4.57407877]
[1772568607179,4.33061987,1984.1,1983.3,4.32196877]
[1772568607476,4.32452789,1983.6,1982.7,10.6128116]
[1772568607673,4.32452789,1983.4,1982.5,4.32196877]
[1772568608075,4.32452789,1983.2,1982.5,4.32196877]
[1772568608478,4.32452789,1983.2,1982.5,4.32683883]
[1772568609775,4.32452789,1983.6,1982.5,4.32683883]
[1772568609974,11.593,1983.3,1982.5,4.32683883]
[1772568610182,15.91752789,1983.3,1982.5,4.32683883]
[1772568610682,4.32452789,1983.2,1982.5,4.32683883]
[1772568611276,4.32452789,1983.2,1982.5,0.00487006]
[1772568613082,4.32452789,1983.2,1982.0,4.32196877]
[1772568613983,4.32452789,1983.2,1982.0,4.32620324]
[1772568614279,11.593,1983.1,1982.0,4.32620324]
[1772568614489,4.32452789,1983.0,1982.0,4.32620324]
[1772568614978,4.32452789,1983.0,1982.2,4.32196877]
[1772568615182,15.91752789,1983.0,1982.2,4.32196877]
[1772568615581,11.593,1983.1,1982.2,4.32196877]
[1772568615785,15.91752789,1983.2,1982.4,4.32196877]
[1772568615979,11.593,1983.2,1982.4,4.32196877]
[1772568616185,4.32452789,1983.1,1982.4,4.32196877]
[1772568616782,11.592,1983.2,1982.4,4.32196877]
[1772568616981,15.91652789,1983.3,1982.6,4.32196877]
[1772568617587,4.32452789,1983.2,1982.6,4.32196877]
[1772568617783,4.32452789,1983.4,1982.6,4.32196877]
[1772568617984,15.91552789,1983.4,1982.6,4.32196877]
[1772568618491,4.27685013,1984.0,1983.0,4.34175063]
[1772568618790,11.591,1983.9,1983.0,4.34175063]
[1772568618990,4.27685013,1983.8,1983.2,4.34175063]
[1772568619289,4.5524862,1984.0,1983.2,4.34175063]
[1772568621294,0.00609198,1984.1,1983.2,4.34175063]
[1772568621491,4.55857818,1984.1,1983.2,4.34175063]
[1772568622288,0.00609198,1984.1,1983.4,4.37480612]
[1772568622487,4.5524862,1984.2,1983.4,4.37480612]
[1772568623394,4.55809316,1984.2,1983.4,0.00400832]
[1772568623994,4.81009316,1984.2,1983.0,4.37480612]
[1772568624195,4.8045162,1984.0,1982.4,4.37480612]
[1772568624398,4.8045362,1983.8,1982.4,4.37480612]
[1772568624699,4.5524862,1983.6,1982.4,4.37480612]
[1772568625097,4.5524862,1983.6,1982.4,4.38003555]
[1772568627103,16.1274862,1983.6,1982.6,4.37480612]
[1772568627502,4.5524862,1983.5,1982.6,4.37480612]
[1772568628105,4.5524862,1983.5,1982.8,4.37480612]
[1772568629107,4.5524862,1983.5,1982.5,4.37480612]
[1772568629506,4.5524862,1983.3,1982.5,4.37480612]
[1772568630505,4.5524862,1983.7,1982.7,4.37480612]
[1772568630704,4.5524862,1984.0,1982.9,4.37480612]
[1772568631009,4.5524862,1983.8,1982.9,4.37480612]
[1772568633908,4.5524862,1983.6,1982.9,4.37480612]
[1772568634508,4.5524862,1983.6,1982.4,0.00522943]
[1772568634509,4.5524862,1983.6,1982.5,4.37480612]
[1772568634709,4.5524862,1983.4,1982.5,4.37480612]
[1772568635507,4.5524862,1983.4,1982.7,4.37480612]
[1772568638508,4.5524862,1983.4,1982.4,0.00522943]
[1772568638709,4.5524862,1983.1,1982.4,0.00522943]
[1772568638904,4.5524862,1982.9,1982.4,0.00522943]
[1772568639404,4.5524862,1982.9,1982.0,4.37480612]
[1772568640508,11.538,1983.1,1982.0,4.6330374]
[1772568640709,16.0904862,1983.1,1982.0,4.6330374]
[1772568641110,4.5524862,1983.0,1982.0,4.6330374]
[1772568641404,4.5524862,1983.5,1982.8,4.37480612]
[1772568641611,4.5524862,1983.7,1983.0,4.37480612]
[1772568643315,4.5524862,1983.7,1982.5,4.37480612]
[1772568643710,4.5524862,1983.7,1982.7,4.37480612]
[1772568644712,4.5524862,1983.7,1982.9,4.37480612]
[1772568645517,4.5524862,1983.5,1982.9,4.37480612]
[1772568647921,4.5524862,1983.5,1982.5,4.3307365]
[1772568648113,2.99988202,1983.8,1982.5,4.3307365]
[1772568648114,4.51652649,1983.3,1982.5,4.3307365]
[1772568648320,4.51652649,1983.2,1982.5,4.3307365]
[1772568648918,4.51652649,1983.2,1982.7,4.3307365]
[1772568650721,11.527,1983.3,1982.7,4.3307365]
[1772568651118,8.69658548,1983.8,1982.9,4.3307365]
[1772568651315,6.26972812,1984.0,1983.1,4.3307365]
[1772568651316,16.04352649,1984.0,1983.1,4.3307365]
[1772568651514,4.51652649,1983.8,1983.0,4.5828965]
[1772568651824,4.51652649,1983.8,1982.6,4.3307365]
[1772568652020,4.51652649,1983.6,1982.6,4.3307365]
[1772568652924,16.04252649,1983.5,1982.6,4.3307365]
[1772568653121,4.51652649,1983.4,1982.6,4.3307365]
[1772568656926,4.51652649,1983.4,1982.5,0.25221]
[1772568657223,5.64616664,1983.3,1982.5,0.25221]
[1772568657422,4.51652649,1983.2,1982.5,0.25221]
[1772568658020,4.51652649,1983.2,1982.5,4.5829465]
[1772568658216,16.04452649,1983.4,1982.5,4.5829465]
[1772568659322,4.51652649,1983.3,1982.5,4.5829465]
[1772568660727,4.51652649,1983.1,1982.5,4.5829465]
[1772568661626,4.51652649,1983.1,1982.1,4.5830065]
[1772568662127,4.51652649,1982.9,1982.1,4.5830065]
[1772568662323,4.51652649,1983.3,1982.5,0.25222]
[1772568662526,16.05052649,1983.5,1982.8,4.3307365]
[1772568662828,4.51652649,1983.4,1982.5,4.5829565]
[1772568664529,4.51652649,1983.4,1982.3,4.3307365]
[1772568664830,4.51652649,1983.2,1982.3,4.3307365]
[1772568665927,4.51652649,1983.0,1982.0,0.25823128]
[1772568666127,4.51652649,1982.8,1982.0,0.25823128]
[1772568666319,4.52150319,1982.8,1982.0,0.25823128]
[1772568666524,4.52150319,1982.8,1982.0,4.58896778]
[1772568668226,0.0049767,1982.8,1982.0,4.58896778]
[1772568668431,4.52150319,1982.8,1982.0,4.58896778]
[1772568669226,4.52150319,1982.8,1982.0,4.33669778]
[1772568669632,4.52150319,1982.8,1982.0,4.58897778]
[1772568670026,11.548,1983.1,1982.3,0.25223]
[1772568670222,11.548,1983.1,1982.4,4.3307365]
[1772568670431,16.06452649,1983.1,1982.4,4.3307365]
[1772568670631,4.51652649,1983.0,1982.4,4.3307365]
[1772568671026,4.52189356,1983.0,1982.4,4.3307365]
[1772568672226,4.51652649,1983.2,1982.6,4.3307365]
[1772568672422,16.06852649,1983.3,1982.6,4.3307365]
[1772568673233,16.07471399,1983.3,1982.6,4.3307365]
[1772568673434,4.51652649,1983.2,1982.6,4.3307365]
[1772568674434,0.0061875,1983.3,1982.6,4.3307365]
[1772568675328,4.52271399,1983.3,1982.6,4.3307365]
[1772568677429,4.77484399,1983.3,1982.2,4.3307365]
[1772568677631,4.51652649,1983.1,1982.2,4.3307365]
[1772568677835,4.51652649,1982.9,1982.2,4.3307365]
[1772568678731,16.07884013,1983.2,1982.4,4.16469365]
[1772568679133,4.51484013,1983.1,1982.4,4.16469365]
[1772568679334,4.51484013,1983.1,1982.1,4.22444712]
[1772568681234,4.51484013,1983.1,1982.3,4.22444712]
[1772568681432,4.20696139,1983.0,1982.3,4.22444712]
[1772568682839,4.20696139,1983.0,1982.2,4.47670712]
[1772568683443,11.571,1983.1,1982.0,4.2304084]
[1772568683444,4.20696139,1982.8,1982.0,4.2304084]
[1772568683844,4.20696139,1982.6,1982.0,4.2304084]
[1772568684744,4.20696139,1982.5,1982.0,4.2304084]
[1772568686145,4.20696139,1982.5,1982.0,0.00596128]
[1772568687749,4.20696139,1982.5,1982.0,4.2304084]
[1772568688452,11.589,1982.6,1982.0,4.2304084]
[1772568688649,4.20696139,1982.5,1982.0,0.00596128]
[1772568690155,4.20696139,1982.5,1981.8,4.22444712]
[1772568691157,4.20696139,1982.5,1981.8,4.23024768]
[1772568692153,11.6,1982.4,1981.8,4.23024768]
[1772568692856,15.80696139,1982.4,1981.8,4.23024768]
[1772568693053,4.20696139,1982.3,1981.8,4.23024768]
[1772568695153,4.43221899,1983.0,1981.8,4.23024768]
[1772568695154,15.81496139,1982.5,1981.8,4.23024768]
[1772568695358,15.81596139,1982.5,1981.8,4.23024768]
[1772568696254,4.20696139,1982.4,1981.8,4.23024768]
[1772568696461,4.20696139,1982.4,1981.4,5.59283582]
[1772568696462,4.45920139,1982.4,1981.4,5.59283582]
[1772568696655,4.45920139,1982.4,1981.5,4.22444712]
[1772568696856,4.45920139,1982.4,1981.4,1.3683887]
[1772568696857,4.20696139,1982.4,1981.7,4.22444712]
[1772568697361,15.81996139,1982.4,1981.7,4.22985469]
[1772568697964,4.20696139,1982.6,1981.7,4.22985469]
[1772568698259,4.20696139,1982.6,1981.9,4.22444712]
[1772568698853,4.20696139,1983.0,1982.1,4.22444712]
[1772568699162,4.20696139,1982.8,1982.1,4.22444712]
[1772568699553,4.20696139,1982.8,1982.3,4.22444712]
[1772568700563,15.82496139,1982.9,1982.3,4.22444712]
[1772568700763,4.20696139,1982.8,1982.3,4.22444712]
[1772568700961,4.20696139,1983.2,1982.3,4.22444712]
[1772568701155,15.82796139,1983.0,1982.3,4.22444712]
[1772568701363,4.20696139,1982.9,1982.3,4.22444712]
[1772568702361,4.20696139,1982.9,1981.9,4.22444712]
[1772568702761,4.20696139,1982.7,1981.8,0.25231]
[1772568702962,16.05322899,1983.0,1981.7,0.00540757]
[1772568702963,4.20696139,1982.5,1981.7,0.00540757]
[1772568703162,4.20696139,1982.3,1981.7,0.00540757]
[1772568705566,4.20696139,1982.2,1981.7,4.22985469]
[1772568706862,4.18005899,1982.8,1981.7,4.22985469]
[1772568707066,4.20696139,1982.6,1981.7,4.22985469]
[1772568707458,4.20696139,1982.6,1981.9,4.22444712]
[1772568707662,7.80989086,1983.3,1981.7,0.00540757]
[1772568707663,4.20696139,1982.9,1982.1,4.22444712]
[1772568707861,4.20696139,1982.9,1982.3,4.22444712]
[1772568708058,15.84296139,1982.9,1982.3,4.22444712]
[1772568708458,0.0061875,1983.3,1982.7,4.34620934]
[1772568709862,0.0061875,1983.3,1982.9,4.34620934]
[1772568710367,4.38659558,1983.6,1982.9,4.34620934]
[1772568711172,0.00518239,1983.6,1982.9,4.34620934]
[1772568711469,4.38659558,1984.0,1983.2,0.25213]
[1772568711670,4.38659558,1984.0,1983.3,4.34620934]
[1772568711860,4.38659558,1983.9,1983.1,4.34620934]
[1772568712066,4.38659558,1983.9,1982.9,4.34620934]
[1772568712273,4.39042735,1983.9,1982.9,4.35132534]
[1772568714262,0.00383177,1983.9,1983.1,4.34620934]
[1772568714668,4.39042735,1983.9,1983.3,4.34620934]
[1772568715570,4.39042735,1983.9,1983.2,0.25213]
[1772568715765,4.39042735,1983.9,1983.2,4.59833934]
[1772568716672,4.39042735,1983.9,1983.0,4.34620934]
[1772568717767,4.39042735,1983.9,1982.9,0.005116]
[1772568717964,4.39042735,1983.9,1983.0,4.34620934]
[1772568719273,4.39042735,1983.9,1982.9,4.35132534]
[1772568720771,4.38659558,1983.7,1982.5,4.34620934]
[1772568720975,4.38659558,1983.5,1982.7,4.34620934]
[1772568721880,4.38659558,1983.5,1982.7,4.35055108]
[1772568722974,4.38659558,1983.4,1982.7,4.35055108]
[1772568723775,4.38659558,1983.4,1982.7,0.00434174]
[1772568724478,4.63870558,1983.4,1982.1,4.34620934]
[1772568725077,4.38659558,1983.2,1982.3,4.34620934]
[1772568725378,4.38659558,1983.2,1982.3,4.35159676]
[1772568727179,4.38659558,1983.1,1982.3,4.35159676]
[1772568727379,4.38659558,1983.1,1982.3,0.00538742]
[1772568731684,4.38659558,1983.1,1981.8,4.59851934]
[1772568732588,4.38659558,1982.7,1981.8,0.0051904]
[1772568732785,4.38659558,1982.3,1981.3,4.34620934]
[1772568732989,4.38659558,1982.2,1981.3,4.34620934]
[1772568733784,4.39028316,1982.2,1981.3,4.35273796]
[1772568735286,4.39028316,1982.2,1981.3,0.00652862]
[1772568735492,4.39028316,1982.2,1981.3,4.60510796]
[1772568737991,4.40829797,1982.6,1981.6,4.14013806]
[1772568738387,4.40829797,1983.2,1981.8,4.14013806]
[1772568738586,4.40829797,1983.2,1982.0,4.14013806]
[1772568738788,4.40829797,1983.2,1982.2,4.14013806]
[1772568739092,4.4120878,1983.2,1982.2,4.14013806]
[1772568740494,4.6642178,1983.2,1982.2,4.14013806]
[1772568740690,4.6642178,1983.2,1981.7,4.47268448]
[1772568741494,4.38142282,1983.0,1981.7,4.47268448]
[1772568741994,4.38142282,1982.8,1981.7,4.47268448]
[1772568742997,4.38142282,1982.8,1981.9,4.47268448]
[1772568744298,4.63361282,1982.8,1981.4,4.47268448]
[1772568745394,4.63361282,1982.8,1981.6,4.47268448]
[1772568745997,4.38142282,1982.8,1981.8,4.47268448]
[1772568746299,4.38142282,1982.6,1981.8,4.47268448]
[1772568748304,4.38142282,1982.6,1981.7,4.72500448]
[1772568749804,4.38142282,1982.6,1981.7,4.47268448]
[1772568751501,4.38142282,1982.6,1981.3,9.81789862]
[1772568751705,4.38142282,1982.4,1981.4,4.47268448]
[1772568752898,4.38142282,1982.2,1981.3,0.00652862]
[1772568753103,4.38142282,1982.1,1981.3,0.00652862]
[1772568756106,4.38142282,1982.1,1981.3,4.4792131]
[1772568756606,4.38142282,1982.1,1981.3,0.00652862]
[1772568757106,4.38142282,1981.9,1981.3,0.00652862]
[1772568758301,4.38142282,1981.9,1981.3,4.4792131]
[1772568759109,4.38142282,1981.9,1981.3,0.00652862]
[1772568760317,4.38142282,1981.9,1981.3,4.4792131]
[1772568762509,4.38142282,1981.9,1981.3,0.00652862]
[1772568764016,4.38142282,1981.9,1981.3,4.4792131]
[1772568765013,4.38142282,1981.9,1981.3,0.00652862]
[1772568765219,4.38142282,1981.9,1981.3,4.4792131]
[1772568765813,16.04342282,1982.1,1981.5,4.47268448]
[1772568766017,9.48630112,1982.7,1981.5,4.47268448]
[1772568766018,4.38142282,1982.3,1981.5,4.47268448]
[1772568766217,4.38142282,1982.2,1981.5,4.47268448]
[1772568771417,4.26872605,1982.5,1981.5,4.47268448]
[1772568771621,4.26872605,1982.3,1981.5,4.47268448]
[1772568774025,4.26872605,1982.3,1981.3,4.38381557]
[1772568774320,4.26872605,1982.1,1981.3,4.38381557]
[1772568775024,4.26872605,1981.9,1981.3,4.38381557]
[1772568775217,4.26872605,1981.8,1981.3,4.38381557]
[1772568775415,4.27478989,1981.8,1981.1,4.37728695]
[1772568776526,4.27478989,1981.8,1981.1,4.38133957]
[1772568779528,4.26872605,1981.6,1981.1,4.38133957]
[1772568781431,11.71406384,1981.8,1981.1,4.38133957]
[1772568781633,15.98278989,1981.8,1981.1,4.38133957]
[1772568781831,4.26872605,1981.7,1981.1,4.38133957]
[1772568782732,11.71406384,1981.8,1981.1,4.38133957]
[1772568782934,0.00606384,1981.8,1981.1,4.38133957]
[1772568783330,0.00606384,1981.8,1981.1,4.63372957]
[1772568784337,4.24278989,1981.9,1981.1,4.63372957]
[1772568785236,4.26872605,1982.3,1981.7,4.37728695]
[1772568785535,15.99172605,1982.5,1981.7,4.37728695]
[1772568785735,5.76753801,1982.4,1981.7,4.37728695]
[1772568785926,4.26872605,1982.5,1981.9,4.37728695]
[1772568786331,4.27313313,1982.5,1981.9,4.37728695]
[1772568787835,0.00440708,1982.5,1981.9,4.37728695]
[1772568788337,4.27313313,1982.5,1981.9,4.37728695]
[1772568788734,0.00440708,1982.5,1981.9,4.37728695]
[1772568788940,4.27313313,1982.5,1981.9,4.37728695]
[1772568789343,4.27313313,1982.5,1981.5,4.37728695]
[1772568790143,4.26872605,1982.3,1981.5,4.37728695]
[1772568790339,4.26872605,1982.1,1981.5,4.37728695]
[1772568790734,0.00440708,1982.5,1981.6,0.25233]
[1772568790735,4.26872605,1982.4,1981.6,0.25233]
[1772568791043,4.26872605,1982.4,1981.7,4.37728695]
[1772568792142,4.26872605,1982.4,1981.3,4.37728695]
[1772568793043,4.26872605,1982.2,1981.3,4.37728695]
[1772568794047,4.26872605,1982.0,1981.3,4.37728695]
[1772568794243,4.26872605,1981.8,1981.3,4.37728695]
[1772568794548,4.26872605,1981.8,1981.1,4.38133957]
[1772568794744,4.26872605,1981.6,1980.7,4.37728695]
[1772568794943,4.26872605,1981.6,1980.3,0.2525]
[1772568794944,4.26872605,1981.4,1980.5,4.37728695]
[1772568795143,4.26872605,1981.2,1980.5,4.37728695]
[1772568795744,16.02272605,1981.2,1980.5,4.38141422]
[1772568795949,4.26872605,1981.1,1980.5,4.38141422]
[1772568796144,4.26872605,1981.1,1980.3,4.37728695]
[1772568796145,4.27440958,1981.1,1980.3,4.37728695]
[1772568796550,4.27440958,1981.1,1979.8,9.69356]
[1772568796551,4.27440958,1981.1,1979.9,4.37728695]
[1772568797046,4.26872605,1980.9,1979.9,4.37728695]
[1772568797246,4.26872605,1980.9,1979.9,4.38143831]
[1772568797649,16.02872605,1980.9,1980.1,4.37728695]
[1772568797850,11.761,1981.0,1980.1,4.37728695]
[1772568798250,4.06363648,1980.9,1980.1,4.37728695]
[1772568803358,4.06363648,1980.9,1979.9,4.14087842]
[1772568805155,4.06363648,1980.9,1979.9,4.39342842]
[1772568809658,4.32660897,1981.1,1980.4,4.13672706]
[1772568809860,0.00568353,1981.1,1980.4,4.13672706]
[1772568810758,0.00568353,1981.1,1980.6,4.13672706]
[1772568811064,4.32092544,1981.4,1980.6,4.13672706]
[1772568811960,4.32477017,1981.4,1980.6,4.13672706]
[1772568812156,0.00384473,1981.4,1980.6,4.13672706]
[1772568812363,0.00384473,1981.4,1980.8,4.13672706]
[1772568812661,4.32477017,1981.4,1980.8,4.13672706]
[1772568814567,4.32092544,1981.9,1980.8,4.13672706]
[1772568815266,4.32092544,1981.7,1980.8,4.13672706]
[1772568815467,4.32637996,1981.7,1980.8,4.13672706]
[1772568815970,4.32092544,1981.3,1980.0,4.13672706]
[1772568816164,4.32092544,1981.1,1980.0,4.13672706]
[1772568816667,4.32092544,1981.1,1980.2,4.13672706]
[1772568818066,4.32092544,1981.3,1980.4,4.13672706]
[1772568819064,4.32092544,1981.5,1980.4,4.13672706]
[1772568819565,4.32092544,1981.5,1980.6,4.13672706]
[1772568821068,4.32092544,1981.5,1980.1,6.21211]
[1772568821069,4.32092544,1981.5,1980.8,4.13672706]
[1772568822767,4.32637996,1981.7,1981.0,4.13672706]
[1772568822964,0.00545452,1981.7,1981.0,4.13672706]
[1772568823868,4.32092544,1982.0,1981.2,4.13672706]
[1772568824761,4.32092544,1982.0,1981.3,0.25237]
[1772568824762,4.32471781,1982.0,1981.3,0.25237]
[1772568824968,0.00379237,1982.0,1981.4,4.13672706]
[1772568825370,4.32471781,1982.0,1981.4,4.13672706]
[1772568825570,4.32471781,1982.0,1981.3,0.00624845]
[1772568825770,4.32471781,1982.0,1981.3,4.14297551]
[1772568827768,4.32471781,1982.0,1981.3,0.00624845]
[1772568828570,4.32471781,1982.0,1981.3,4.22894593]
[1772568829475,4.32471781,1982.0,1981.3,0.00624845]
[1772568831474,4.31337268,1981.8,1981.3,4.22894593]
[1772568832674,4.31337268,1981.8,1980.8,4.22269748]
[1772568832975,4.31337268,1981.6,1980.5,4.22269748]
[1772568833674,4.31337268,1981.6,1980.5,4.22915842]
[1772568835371,4.31337268,1981.4,1980.5,4.22915842]
[1772568835571,4.31337268,1981.2,1980.1,4.22269748]
[1772568835777,4.31337268,1981.0,1980.1,4.22269748]
[1772568836576,4.31337268,1981.0,1980.1,4.22796915]
[1772568837679,4.31337268,1980.8,1980.1,4.22796915]
[1772568837876,4.31337268,1980.7,1980.1,4.22796915]
[1772568838172,4.31337268,1980.7,1980.1,0.00527167]
[1772568838879,4.31337268,1980.5,1979.6,4.22269748]
[1772568839083,4.31337268,1980.7,1979.8,4.22269748]
[1772568839376,4.31337268,1980.6,1979.8,4.22269748]
[1772568839771,4.31904058,1980.6,1979.8,4.22819275]
[1772568840169,0.0056679,1980.6,1979.8,4.22819275]
[1772568840576,4.31337268,1980.9,1980.0,4.22269748]
[1772568841576,4.31928106,1980.9,1980.0,4.22269748]
[1772568842474,4.31337268,1980.7,1979.8,4.22819275]
[1772568842872,16.09937268,1980.7,1979.8,4.22819275]
[1772568843076,4.31337268,1980.6,1979.8,4.22819275]
[1772568852384,4.31337268,1980.8,1979.8,4.48075275]
[1772568857091,0.00590838,1980.9,1980.2,4.22269748]
[1772568857286,4.31928106,1980.9,1980.2,4.22269748]
[1772568857487,4.31928106,1980.9,1980.0,4.22269748]
[1772568859394,4.31928106,1980.9,1980.0,4.47523748]
[1772568861093,4.31928106,1980.9,1979.8,4.21910927]
[1772568861293,4.09470713,1980.7,1979.8,4.21910927]
[1772568861688,4.09470713,1980.7,1980.0,4.213614]
[1772568863896,4.10061551,1980.9,1980.0,4.213614]
[1772568864194,5.75577895,1980.8,1980.0,4.213614]
[1772568864399,4.09470713,1980.7,1980.0,4.213614]
[1772568864899,4.10061551,1980.9,1980.0,4.213614]
[1772568865099,9.85049078,1980.8,1980.0,4.213614]
[1772568865300,4.09470713,1980.8,1980.0,4.213614]
[1772568868598,0.00590838,1980.9,1980.2,4.213614]
[1772568869103,4.10061551,1980.9,1980.2,4.213614]
[1772568869303,0.00590838,1980.9,1980.2,4.213614]
[1772568869605,4.10061551,1980.9,1980.2,4.213614]
[1772568873104,0.00590838,1980.9,1980.2,4.213614]
[1772568873804,4.10061551,1980.9,1980.2,4.213614]
[1772568876104,0.00590838,1980.9,1980.2,4.213614]
[1772568876608,4.20771053,1981.3,1980.4,4.213614]
[1772568876609,4.09470713,1981.3,1980.4,4.213614]
[1772568877610,4.09826623,1981.3,1980.6,4.213614]
[1772568878003,4.09826623,1981.3,1980.3,4.213614]
[1772568879202,4.09470713,1981.2,1980.3,4.213614]
[1772568879402,4.09470713,1981.2,1980.5,4.213614]
[1772568879611,4.09826623,1981.3,1980.7,4.213614]
[1772568879811,0.0035591,1981.3,1980.7,4.213614]
[1772568881611,4.09826623,1981.3,1980.7,4.213614]
[1772568886307,4.09826623,1981.3,1980.5,4.213614]
[1772568886513,2.75431638,1981.2,1980.3,4.213614]
[1772568886709,4.09470713,1981.1,1980.3,4.213614]
[1772568892408,4.09470713,1981.1,1979.9,4.00999619]
[1772568892611,3.89655852,1980.8,1979.9,4.00999619]
[1772568892813,3.89655852,1980.7,1979.9,4.00999619]
[1772568894220,3.89655852,1980.8,1979.9,4.00999619]
[1772568899922,6.6508749,1980.8,1979.8,0.00549527]
[1772568900118,0.25261,1979.5,1978.9,13.14928515]
[1772568900320,2.75431638,1978.8,1977.8,7.92293772]
[1772568900522,4.19197422,1979.2,1978.1,4.00999619]
[1772568900822,0.79000723,1979.1,1978.3,4.00999619]
[1772568901018,6.28877909,1980.1,1978.5,4.00999619]
[1772568901019,0.07442134,1979.0,1978.5,4.00999619]
[1772568901223,11.822,1979.5,1978.7,4.00999619]
[1772568901224,7.77644877,1979.4,1978.7,4.00999619]
[1772568901524,7.77644877,1979.4,1978.9,4.00999619]
[1772568901723,7.35123423,1979.9,1978.9,4.00999619]
[1772568901922,3.15926001,1979.9,1979.1,4.00999619]
[1772568902222,0.00591456,1979.9,1979.3,4.37972566]
[1772568902429,6.59527856,1980.7,1979.4,4.37972566]
[1772568902627,2.40330434,1980.7,1979.7,4.37972566]
[1772568902823,11.825,1980.8,1979.7,4.37972566]
[1772568903030,6.59490991,1981.0,1979.9,4.37972566]
[1772568903326,2.40921862,1981.0,1979.9,4.38605144]
[1772568903731,2.40921862,1981.0,1980.1,4.37990999]
[1772568904030,2.39116293,1980.9,1980.1,4.37990999]
[1772568904328,2.39116293,1980.9,1980.2,36.04036141]
[1772568904730,2.39116293,1980.9,1980.2,40.42362686]
[1772568905024,14.17171113,1980.8,1980.3,4.38326545]
[1772568905333,2.30069602,1980.7,1980.2,35.41855695]
[1772568906427,7.86506169,1981.4,1980.2,35.41855695]
[1772568906428,3.89655852,1981.5,1980.5,4.00999619]
[1772568906922,15.72455852,1981.7,1980.9,4.00999619]
[1772568907125,3.89655852,1981.6,1980.9,4.00999619]
[1772568907329,3.89655852,1981.6,1980.1,4.00999619]
[1772568907528,3.90187958,1981.6,1980.5,4.00999619]
[1772568907832,3.89655852,1981.4,1980.5,4.00999619]
[1772568909130,3.90187958,1981.6,1980.7,4.00999619]
[1772568909330,3.89655852,1981.5,1980.7,4.00999619]
[1772568909632,3.89655852,1981.5,1980.9,4.00999619]
[1772568910129,3.89655852,1981.5,1981.0,4.00999619]
[1772568910924,0.00532106,1981.6,1981.2,4.00999619]
[1772568911129,3.90187958,1981.6,1980.6,4.00999619]
[1772568911329,3.90187958,1981.6,1980.9,8.29206069]
[1772568911531,0.00532106,1981.6,1981.0,4.00999619]
[1772568911932,0.00532106,1981.6,1981.3,4.00999619]
[1772568912127,0.00532106,1981.6,1981.3,4.01638001]
[1772568912436,0.00532106,1981.6,1981.3,12.3084407]
[1772568912625,0.00532106,1981.6,1981.4,4.00999619]
[1772568912828,3.89655852,1982.0,1981.4,28.28023559]
[1772568913234,0.78866144,1981.9,1981.5,4.00999619]
[1772568913436,3.89655852,1982.2,1981.5,4.00999619]
[1772568913636,10.69947812,1983.2,1981.3,0.00638382]
[1772568913637,11.831,1982.3,1981.7,4.00999619]
[1772568913932,7.27532916,1982.2,1981.7,4.00999619]
[1772568914629,7.27532916,1982.2,1981.8,4.00999619]
[1772568914828,3.89655852,1982.1,1981.7,8.29206069]
[1772568915029,3.89655852,1982.1,1981.5,4.00999619]
[1772568915233,11.83673139,1982.3,1981.7,5.91969212]
[1772568915431,19.04035953,1982.2,1981.7,5.91969212]
[1772568915735,19.04035953,1982.2,1981.4,15.69247475]
[1772568915736,7.20903259,1982.1,1981.3,5.92607594]
[1772568915937,9.96334897,1982.1,1981.3,15.69885857]
[1772568916137,0.02138294,1981.9,1981.1,5.91969212]
[1772568916338,0.02138294,1981.9,1981.2,15.69247475]
[1772568917129,0.58296993,1981.7,1980.9,5.89196975]
[1772568917334,0.58296993,1981.5,1980.9,5.89196975]
[1772568917736,7.78725041,1981.5,1981.1,5.89196975]
[1772568918136,11.835,1981.4,1981.1,5.89633297]
[1772568918838,11.835,1981.4,1980.9,5.92523756]
[1772568919534,11.835,1981.4,1981.0,5.92508063]
[1772568919937,11.837,1981.5,1981.1,14.21714132]
[1772568920234,2.75431638,1981.2,1980.4,6.11096847]
[1772568920439,7.20067977,1981.1,1980.5,15.37661604]
[1772568920739,11.838,1981.0,1980.5,21.48758451]
[1772568921139,11.838,1981.0,1980.5,29.78423338]
[1772568921339,11.838,1981.0,1980.6,6.11073703]
[1772568922039,11.838,1981.0,1980.5,0.00458818]
[1772568922234,11.838,1981.0,1980.5,8.29664887]
[1772568922439,11.838,1981.0,1980.5,14.39962691]
[1772568922643,11.838,1981.0,1980.5,15.38120422]
[1772568922941,21.7951334,1980.9,1979.5,6.10297804]
[1772568923136,7.19981702,1980.8,1980.2,6.10276988]
[1772568923332,19.04181702,1980.7,1980.2,6.10276988]
[1772568923540,7.19981702,1980.6,1980.2,6.10276988]
[1772568923734,11.842,1980.7,1980.4,8.29206069]
[1772568923938,11.843,1980.8,1980.5,6.10276988]
[1772568924341,11.843,1980.8,1980.6,14.39674271]
[1772568924538,11.843,1980.8,1980.6,6.10468202]